bitfinex-derivatives/quotes_BTCF0:USTF0_20251125
["timestamp","ask_amount","ask_price","bid_price","bid_amount"]
[1764049004011,0.4483428,88230.0,88229.0,0.05741177]
[1764049004316,0.0983428,88230.0,88229.0,0.05741177]
[1764049004911,0.4283428,88230.0,88229.0,0.05741177]
[1764049005102,0.4283428,88230.0,88229.0,0.04607267]
[1764049006214,0.0557028,88230.0,88229.0,0.04607267]
[1764049006610,0.04482477,88230.0,88229.0,0.04607267]
[1764049006818,0.40344,88237.0,88236.0,0.0581]
[1764049007007,0.4591592,88237.0,88236.0,0.05883267]
[1764049007312,0.6891592,88237.0,88236.0,0.05883267]
[1764049007616,0.4491592,88237.0,88236.0,0.05883267]
[1764049007817,0.6691592,88237.0,88236.0,0.05883267]
[1764049008115,0.6691592,88237.0,88236.0,0.07017087]
[1764049009015,0.6701592,88237.0,88236.0,0.07017087]
[1764049009409,0.6691592,88237.0,88236.0,0.07017087]
[1764049009920,0.0783592,88237.0,88236.0,0.07017087]
[1764049010108,0.0570392,88237.0,88236.0,0.07017087]
[1764049010511,0.0257192,88237.0,88236.0,0.07017087]
[1764049011422,0.02132307,88237.0,88236.0,0.07017087]
[1764049011723,0.04264,88248.0,88245.0,0.0113371]
[1764049011908,0.06484133,88246.0,88245.0,0.04607267]
[1764049013217,0.10484133,88246.0,88245.0,0.04607267]
[1764049013817,0.04484133,88246.0,88245.0,0.04607267]
[1764049015325,0.09484133,88246.0,88245.0,0.04607267]
[1764049015823,0.10484133,88246.0,88245.0,0.04607267]
[1764049016724,0.23484133,88246.0,88245.0,0.04607267]
[1764049020628,0.43484133,88246.0,88245.0,0.04607267]
[1764049020927,0.43484133,88246.0,88245.0,0.00073267]
[1764049021127,0.04264,88237.0,88236.0,0.0696582]
[1764049021331,0.39483803,88237.0,88236.0,0.00073267]
[1764049021823,0.39483803,88237.0,88222.0,0.3608]
[1764049021824,0.04264,88225.0,88224.0,0.04556]
[1764049022024,0.42483803,88225.0,88224.0,0.00073267]
[1764049022423,0.42483803,88225.0,88224.0,0.04629267]
[1764049022728,0.17483803,88225.0,88224.0,0.04629267]
[1764049023029,0.07483803,88225.0,88224.0,0.04629267]
[1764049023228,0.48483803,88225.0,88224.0,0.04629267]
[1764049023426,0.48583803,88225.0,88224.0,0.04629267]
[1764049024623,0.48583803,88225.0,88224.0,0.05763247]
[1764049025327,0.16483803,88225.0,88224.0,0.05763247]
[1764049025529,0.42483803,88225.0,88224.0,0.04629267]
[1764049026829,0.09483803,88225.0,88224.0,0.04629267]
[1764049027317,0.40483803,88225.0,88224.0,0.04629267]
[1764049027721,0.39483803,88225.0,88224.0,0.04629267]
[1764049027919,0.17483803,88225.0,88224.0,0.04629267]
[1764049028333,0.46483803,88225.0,88224.0,0.04629267]
[1764049030031,0.10483803,88225.0,88224.0,0.05968267]
[1764049030226,0.36483803,88225.0,88224.0,0.02342267]
[1764049030627,0.36483803,88225.0,88224.0,0.04629267]
[1764049031621,0.36483803,88225.0,88224.0,0.00073267]
[1764049032431,0.0538502,88221.0,88220.0,0.00017004]
[1764049032739,0.44959752,88221.0,88220.0,0.00017004]
[1764049034329,0.42604823,88221.0,88220.0,0.00017004]
[1764049034531,0.42704823,88221.0,88220.0,0.00017004]
[1764049038236,0.42604823,88221.0,88220.0,0.00017004]
[1764049038437,0.42704823,88221.0,88220.0,0.00017004]
[1764049039625,0.41570803,88221.0,88220.0,0.00017004]
[1764049039826,0.41570803,88221.0,88220.0,0.05736271]
[1764049039827,0.09570803,88221.0,88220.0,0.05736271]
[1764049040031,0.07451803,88221.0,88220.0,0.05736271]
[1764049040633,0.09570803,88221.0,88220.0,0.05736271]
[1764049041037,0.09470803,88221.0,88220.0,0.05736271]
[1764049041839,0.04470803,88221.0,88220.0,0.05736271]
[1764049042041,0.00219803,88221.0,88220.0,0.05736271]
[1764049042935,0.02351803,88221.0,88220.0,0.05736271]
[1764049043144,0.06219803,88221.0,88220.0,0.05736271]
[1764049043447,0.00219803,88221.0,88220.0,0.05736271]
[1764049043743,0.04470803,88221.0,88220.0,0.05736271]
[1764049043937,0.09470803,88221.0,88220.0,0.05736271]
[1764049044842,0.05219803,88221.0,88220.0,0.05736271]
[1764049045040,0.07351803,88221.0,88220.0,0.05736271]
[1764049045344,0.09470803,88221.0,88220.0,0.05736271]
[1764049049442,0.04470803,88221.0,88220.0,0.05736271]
[1764049049643,0.09470803,88221.0,88220.0,0.05736271]
[1764049052138,0.11845811,88221.0,88220.0,0.05736271]
[1764049053047,0.06845811,88221.0,88220.0,0.05736271]
[1764049053848,0.19845811,88221.0,88220.0,0.05736271]
[1764049055250,0.06845811,88221.0,88220.0,0.05736271]
[1764049055447,0.11845811,88221.0,88220.0,0.05736271]
[1764049062266,0.09470803,88221.0,88220.0,0.05736271]
[1764049062962,0.11846177,88221.0,88220.0,0.05736271]
[1764049064463,0.06846177,88221.0,88220.0,0.05736271]
[1764049065162,0.19846177,88221.0,88220.0,0.05736271]
[1764049068665,0.17470803,88221.0,88220.0,0.05736271]
[1764049068878,0.19847574,88221.0,88220.0,0.05736271]
[1764049069663,0.06847574,88221.0,88220.0,0.05736271]
[1764049070564,0.16847574,88221.0,88220.0,0.05736271]
[1764049073972,0.18847574,88221.0,88220.0,0.05736271]
[1764049074471,0.14376771,88221.0,88220.0,0.05736271]
[1764049074664,0.12,88221.0,88220.0,0.41816271]
[1764049075067,0.08487746,88240.0,88239.0,0.0113379]
[1764049075374,0.0682917,88240.0,88239.0,0.05662057]
[1764049078169,0.0682917,88240.0,88239.0,0.04528267]
[1764049078170,0.09452803,88240.0,88239.0,0.04528267]
[1764049078375,0.44452803,88240.0,88239.0,0.00073267]
[1764049078675,0.46825999,88240.0,88239.0,0.00073267]
[1764049079970,0.46825999,88240.0,88233.0,0.38224]
[1764049079971,0.04264,88234.0,88233.0,0.38224]
[1764049080163,0.39483803,88234.0,88233.0,0.38297267]
[1764049080367,0.40617653,88234.0,88233.0,0.36153267]
[1764049080768,0.42995396,88234.0,88233.0,0.3608]
[1764049081169,0.42995396,88234.0,88224.0,0.0113397]
[1764049081170,0.0113397,88225.0,88224.0,0.0113397]
[1764049081374,0.47617773,88225.0,88224.0,0.00073267]
[1764049082278,0.47617773,88225.0,88224.0,0.36153267]
[1764049082481,0.47617773,88225.0,88224.0,0.38297267]
[1764049082675,0.49995435,88225.0,88224.0,0.38297267]
[1764049083076,0.49995435,88225.0,88224.0,0.40619267]
[1764049084279,0.49994544,88225.0,88224.0,0.40619267]
[1764049084483,0.47617773,88225.0,88224.0,0.40619267]
[1764049084778,0.49994112,88225.0,88224.0,0.40619267]
[1764049085081,0.47617773,88225.0,88224.0,0.40619267]
[1764049085380,0.49994109,88225.0,88224.0,0.40619267]
[1764049085677,0.48860139,88225.0,88224.0,0.40619267]
[1764049086068,0.04483803,88225.0,88224.0,0.40619267]
[1764049086371,0.26483803,88225.0,88224.0,0.40619267]
[1764049088587,0.10483803,88225.0,88224.0,0.40619267]
[1764049088982,0.12751746,88234.0,88233.0,0.04466]
[1764049089184,0.40860271,88234.0,88233.0,0.04539267]
[1764049090383,0.40960271,88234.0,88233.0,0.04539267]
[1764049093585,0.40860271,88234.0,88233.0,0.04539267]
[1764049096288,0.40860271,88234.0,88233.0,0.00073267]
[1764049097884,0.40860271,88234.0,88233.0,0.02320267]
[1764049098781,0.40960271,88234.0,88233.0,0.02320267]
[1764049100278,0.40960271,88234.0,88233.0,0.04527267]
[1764049100780,0.40960271,88234.0,88233.0,0.02320267]
[1764049100982,0.40960271,88234.0,88233.0,0.04527267]
[1764049107790,0.36696271,88234.0,88224.0,0.3608]
[1764049108093,0.04264,88225.0,88224.0,0.3608]
[1764049108297,0.04264,88221.0,88220.0,0.00017004]
[1764049108487,0.46994291,88221.0,88220.0,0.00017004]
[1764049109096,0.46994291,88221.0,88220.0,0.01224301]
[1764049109392,0.46994291,88221.0,88220.0,0.02337271]
[1764049110292,0.46994291,88221.0,88220.0,0.03471301]
[1764049112187,0.46994291,88221.0,88220.0,0.02337271]
[1764049112698,0.46994291,88221.0,88220.0,0.00090271]
[1764049113096,0.46994291,88221.0,88220.0,0.04544271]
[1764049114196,0.45860271,88221.0,88220.0,0.04544271]
[1764049115583,0.45860271,88221.0,88220.0,0.00090271]
[1764049115789,0.45860271,88221.0,88220.0,0.00017004]
[1764049117402,0.45860271,88221.0,88220.0,0.02264004]
[1764049117594,0.45860271,88221.0,88220.0,0.00017004]
[1764049119505,0.45860271,88221.0,88220.0,0.03398034]
[1764049119684,0.45860271,88221.0,88220.0,0.05678301]
[1764049119888,0.45860271,88221.0,88220.0,0.07008301]
[1764049120302,0.43483803,88221.0,88220.0,0.07008301]
[1764049121002,0.39219803,88221.0,88220.0,0.07008301]
[1764049122094,0.41351803,88221.0,88220.0,0.07008301]
[1764049122701,0.43483803,88221.0,88220.0,0.07008301]
[1764049132803,0.43483803,88221.0,88220.0,0.03471301]
[1764049133105,0.4586613,88221.0,88220.0,0.05804301]
[1764049133304,0.4586613,88221.0,88220.0,0.07125301]
[1764049135808,0.4586613,88221.0,88220.0,0.05991271]
[1764049137301,0.4586613,88221.0,88220.0,0.04670271]
[1764049138201,0.4586613,88221.0,88220.0,0.05984271]
[1764049138602,0.4586613,88221.0,88220.0,0.42064271]
[1764049141100,0.0260213,88221.0,88220.0,0.42064271]
[1764049141299,0.40344,88235.0,88234.0,0.04525]
[1764049141499,0.57938331,88235.0,88234.0,0.05732117]
[1764049141700,0.17594331,88235.0,88234.0,0.05732117]
[1764049141900,0.15219803,88235.0,88234.0,0.05732117]
[1764049142205,0.19483803,88235.0,88234.0,0.05732117]
[1764049144402,0.15219803,88235.0,88234.0,0.05732117]
[1764049144600,0.15,88235.0,88234.0,0.05732117]
[1764049144803,0.15,88235.0,88234.0,0.11846294]
[1764049145309,0.15,88235.0,88234.0,0.05732117]
[1764049146211,0.17132,88235.0,88234.0,0.05732117]
[1764049148215,0.17132,88235.0,88234.0,0.41812117]
[1764049148513,0.15,88235.0,88234.0,0.41812117]
[1764049148718,0.17132,88235.0,88234.0,0.41812117]
[1764049152819,0.19264,88235.0,88234.0,0.41812117]
[1764049153118,0.17132,88235.0,88234.0,0.41812117]
[1764049153808,0.15,88235.0,88234.0,0.41812117]
[1764049157618,0.19264,88235.0,88234.0,0.41812117]
[1764049158118,0.15,88235.0,88234.0,0.41812117]
[1764049158504,0.17132,88235.0,88234.0,0.41812117]
[1764049158713,0.19264,88235.0,88234.0,0.41812117]
[1764049159024,0.0465,88253.0,88245.0,0.0113371]
[1764049159205,0.0465,88253.0,88245.0,0.37286977]
[1764049159410,0.0465033,88246.0,88245.0,0.41814977]
[1764049160913,0.37870133,88246.0,88245.0,0.39496977]
[1764049161111,0.37870133,88246.0,88245.0,0.37286977]
[1764049161522,0.37870133,88246.0,88245.0,0.41814977]
[1764049162315,0.13870133,88246.0,88245.0,0.41814977]
[1764049162510,0.04870133,88246.0,88245.0,0.41814977]
[1764049162718,0.31870133,88246.0,88245.0,0.41814977]
[1764049164220,0.0765033,88246.0,88245.0,0.41814977]
[1764049164522,0.0531933,88246.0,88245.0,0.41814977]
[1764049164917,0.0765033,88246.0,88245.0,0.41814977]
[1764049165112,0.0765033,88246.0,88245.0,0.47915938]
[1764049165312,3.3e-06,88246.0,88245.0,0.43387938]
[1764049165916,3.3e-06,88246.0,88245.0,0.55407938]
[1764049166226,3.3e-06,88246.0,88245.0,0.70411707]
[1764049166425,3.3e-06,88246.0,88245.0,0.64306977]
[1764049168415,3.3e-06,88246.0,88245.0,0.49306977]
[1764049169322,3.3e-06,88246.0,88245.0,0.65306977]
[1764049169626,3.3e-06,88246.0,88245.0,0.94406977]
[1764049171321,3.3e-06,88246.0,88245.0,1.30486977]
[1764049171921,3.3e-06,88246.0,88245.0,0.85486977]
[1764049174023,0.0231933,88246.0,88245.0,0.90014977]
[1764049174422,0.0465033,88246.0,88245.0,0.90014977]
[1764049174620,0.04870133,88246.0,88245.0,1.07878977]
[1764049179123,0.0465033,88246.0,88245.0,1.07878977]
[1764049179428,0.04870133,88246.0,88245.0,1.07878977]
[1764049181133,0.0465033,88246.0,88245.0,1.07878977]
[1764049181633,3.3e-06,88246.0,88245.0,1.04276977]
[1764049184634,3.3e-06,88246.0,88245.0,1.28425265]
[1764049186635,3.3e-06,88246.0,88245.0,1.20276977]
[1764049187530,3.3e-06,88246.0,88245.0,1.04276977]
[1764049188028,3.3e-06,88246.0,88245.0,1.18276977]
[1764049189230,3.3e-06,88246.0,88245.0,1.04276977]
[1764049193536,3.3e-06,88246.0,88245.0,1.34276977]
[1764049193734,3.3e-06,88246.0,88245.0,1.04276977]
[1764049193939,3.3e-06,88246.0,88245.0,1.19276977]
[1764049195242,3.3e-06,88246.0,88245.0,1.04276977]
[1764049196732,3.3e-06,88246.0,88245.0,1.34276977]
[1764049200339,0.04456,88275.0,88274.0,0.0113334]
[1764049200544,0.13023355,88275.0,88274.0,0.23363607]
[1764049201340,0.10675803,88275.0,88274.0,0.23363607]
[1764049201541,0.10775803,88275.0,88274.0,0.23363607]
[1764049203238,0.12080803,88275.0,88274.0,0.23363607]
[1764049204340,0.12080803,88275.0,88274.0,0.22230267]
[1764049204646,0.48080803,88275.0,88274.0,0.17933267]
[1764049204845,0.48080803,88275.0,88274.0,0.00073267]
[1764049205147,0.34080803,88275.0,88274.0,0.00073267]
[1764049206844,0.04456,88273.0,88272.0,0.3608]
[1764049207147,0.04456,88268.0,88267.0,0.1202]
[1764049207348,0.47809213,88268.0,88267.0,0.1202]
[1764049208343,0.47909213,88268.0,88267.0,0.1202]
[1764049208942,0.46775803,88268.0,88267.0,0.1202]
[1764049210653,0.04456,88267.0,88266.0,0.05447432]
[1764049210841,0.34675803,88267.0,88266.0,0.03317432]
[1764049211044,0.34675803,88267.0,88266.0,0.01223699]
[1764049211352,0.34675803,88267.0,88266.0,0.03409699]
[1764049211851,0.34775803,88267.0,88266.0,0.03409699]
[1764049212053,0.34775803,88267.0,88266.0,0.05731699]
[1764049213955,0.08775803,88267.0,88266.0,0.05731699]
[1764049222650,0.04775803,88267.0,88266.0,0.04598259]
[1764049222851,0.41775803,88267.0,88266.0,0.00090259]
[1764049227064,0.41775803,88267.0,88266.0,0.02276259]
[1764049227262,0.14775803,88267.0,88266.0,0.04598259]
[1764049229063,0.42775803,88267.0,88266.0,0.00090259]
[1764049233255,0.48775803,88267.0,88266.0,0.00090259]
[1764049233659,0.45775803,88267.0,88266.0,0.00090259]
[1764049237269,0.41775803,88267.0,88266.0,0.00090259]
[1764049237769,0.0113354,88258.0,88257.0,0.06121255]
[1764049237965,0.011336,88254.0,88252.0,0.0331961]
[1764049238159,0.04483803,88253.0,88252.0,0.0564161]
[1764049238360,0.45483803,88253.0,88252.0,0.0564161]
[1764049238563,0.45483803,88253.0,88252.0,0.05714877]
[1764049240871,0.09483803,88253.0,88252.0,0.05714877]
[1764049246270,0.38483803,88253.0,88252.0,0.05714887]
[1764049246465,0.10483803,88253.0,88252.0,0.07041887]
[1764049247265,0.10483803,88253.0,88252.0,0.1315344]
[1764049249172,0.10483803,88253.0,88252.0,0.07041887]
[1764049257083,0.02148954,88261.0,88260.0,0.0703952]
[1764049257281,0.02368757,88261.0,88260.0,0.05979267]
[1764049257482,0.04500757,88261.0,88260.0,0.05979267]
[1764049258084,0.15500757,88261.0,88260.0,0.05979267]
[1764049258586,0.10500757,88261.0,88260.0,0.05979267]
[1764049259373,0.22500757,88261.0,88260.0,0.05979267]
[1764049261385,0.42500757,88261.0,88260.0,0.00073267]
[1764049262484,0.42500757,88261.0,88260.0,0.02382267]
[1764049262877,0.42500757,88261.0,88260.0,0.00073267]
[1764049266286,0.04264,88252.0,88251.0,0.0113363]
[1764049266486,0.15483803,88252.0,88251.0,0.05819897]
[1764049273291,0.15483803,88252.0,88251.0,0.04686267]
[1764049274189,0.43483803,88252.0,88251.0,0.04686267]
[1764049276295,0.43483803,88252.0,88251.0,0.02382267]
[1764049276589,0.43483803,88252.0,88251.0,0.00073267]
[1764049276795,0.81912862,88252.0,88251.0,0.00073267]
[1764049277089,0.0539771,88245.0,88244.0,0.00016992]
[1764049277290,0.0326579,88239.0,88238.0,0.06118751]
[1764049277488,0.04264,88238.0,88237.0,0.42198751]
[1764049277689,0.42483803,88238.0,88237.0,0.3608]
[1764049278179,0.04264,88233.0,88232.0,0.06118751]
[1764049278380,0.48483803,88233.0,88232.0,0.06118751]
[1764049279003,0.48483803,88233.0,88232.0,0.10483018]
[1764049279189,0.16483803,88233.0,88232.0,0.04364267]
[1764049279490,0.00219803,88233.0,88232.0,0.04364267]
[1764049279997,0.05219803,88233.0,88232.0,0.04364267]
[1764049280196,0.05219803,88233.0,88232.0,0.10474433]
[1764049280400,0.45483803,88233.0,88232.0,0.10474433]
[1764049280701,0.45483803,88233.0,88232.0,0.00073267]
[1764049281090,0.45483803,88233.0,88232.0,0.04364267]
[1764049281799,0.04264,88230.0,88229.0,0.36096992]
[1764049281993,0.43483803,88230.0,88229.0,0.00016992]
[1764049284102,0.04264,88221.0,88220.0,0.05633]
[1764049284301,0.15483803,88221.0,88220.0,0.05633]
[1764049286795,0.15483803,88221.0,88220.0,0.02176]
[1764049287103,0.22483803,88221.0,88220.0,0.02176]
[1764049287293,0.22483803,88221.0,88220.0,0.04291]
[1764049288789,0.0313012,88213.0,88212.0,0.00017003]
[1764049288995,0.81295803,88213.0,88212.0,0.04308003]
[1764049289302,0.74429923,88213.0,88212.0,0.04308003]
[1764049289802,0.74429923,88213.0,88212.0,0.00017003]
[1764049290204,0.74429923,88213.0,88212.0,0.02193003]
[1764049290398,0.74429923,88213.0,88212.0,0.04308003]
[1764049291005,0.74429923,88213.0,88212.0,0.00017003]
[1764049291409,0.74429923,88213.0,88212.0,0.04308003]
[1764049291902,0.031302,88207.0,88206.0,0.00028343]
[1764049292102,0.031302,88207.0,88185.0,0.01342]
[1764049292103,0.01996,88198.0,88185.0,0.01342]
[1764049292303,0.47215803,88198.0,88185.0,0.01342]
[1764049292494,0.47215803,88198.0,88197.0,0.02185908]
[1764049292700,0.83295803,88198.0,88197.0,0.04300908]
[1764049294019,0.83295803,88198.0,88197.0,0.02185908]
[1764049294307,0.83295803,88198.0,88197.0,0.04300908]
[1764049294809,0.14215803,88198.0,88197.0,0.05508505]
[1764049295010,0.12219803,88198.0,88197.0,0.05508505]
[1764049295404,0.34215803,88198.0,88197.0,0.05508505]
[1764049296802,0.32219803,88198.0,88197.0,0.05508505]
[1764049297002,0.05219803,88198.0,88197.0,0.05508505]
[1764049299106,0.06217803,88198.0,88197.0,0.05508505]
[1764049299911,0.07215803,88198.0,88197.0,0.05508505]
[1764049300214,0.05219803,88198.0,88197.0,0.05508505]
[1764049300416,0.06217803,88198.0,88197.0,0.05508505]
[1764049300616,0.07215803,88198.0,88197.0,0.05508505]
[1764049300815,0.06217803,88198.0,88197.0,0.05508505]
[1764049301618,0.3608,88209.0,88208.0,0.0563818]
[1764049301803,0.36299803,88209.0,88208.0,0.05711447]
[1764049302205,0.00219803,88209.0,88208.0,0.05711447]
[1764049302610,0.01996,88220.0,88219.0,0.04504]
[1764049302811,0.05215803,88220.0,88219.0,0.04577267]
[1764049303011,0.06349833,88220.0,88219.0,0.04577267]
[1764049303314,0.43349833,88220.0,88219.0,0.04577267]
[1764049303520,0.04215803,88220.0,88219.0,0.04577267]
[1764049304807,0.36215803,88220.0,88219.0,0.02346267]
[1764049305013,0.36215803,88220.0,88219.0,0.00073267]
[1764049306013,0.36215803,88220.0,88219.0,0.04577267]
[1764049306812,0.02215803,88220.0,88219.0,0.04577267]
[1764049307019,0.07215803,88220.0,88219.0,0.04577267]
[1764049307323,0.07315803,88220.0,88219.0,0.04577267]
[1764049307725,0.36215803,88220.0,88219.0,0.04577267]
[1764049308111,0.01996,88212.0,88211.0,0.03424153]
[1764049308316,0.72295803,88212.0,88211.0,0.0349742]
[1764049308617,0.72295803,88212.0,88211.0,0.0572842]
[1764049310218,0.38295803,88212.0,88211.0,0.0572842]
[1764049310420,0.45295803,88212.0,88211.0,0.0572842]
[1764049310622,0.70295803,88212.0,88211.0,0.0572842]
[1764049310819,0.70295803,88212.0,88211.0,0.0459427]
[1764049312015,0.43295803,88212.0,88211.0,0.0459427]
[1764049314126,0.75295803,88212.0,88211.0,0.0459427]
[1764049314720,0.75295803,88212.0,88211.0,0.0236327]
[1764049314921,0.75295803,88212.0,88211.0,0.0459427]
[1764049316921,0.44295803,88212.0,88211.0,0.0459427]
[1764049317519,0.44295803,88212.0,88211.0,0.0572842]
[1764049317727,0.80295803,88212.0,88211.0,0.0572842]
[1764049319327,0.44295803,88212.0,88211.0,0.0572842]
[1764049321428,0.81295803,88212.0,88211.0,0.0009027]
[1764049321627,0.81295803,88212.0,88211.0,0.00017003]
[1764049322932,0.81295803,88212.0,88211.0,0.04537003]
[1764049323125,0.78295803,88212.0,88211.0,0.0461027]
[1764049323927,0.83295803,88212.0,88211.0,0.0461027]
[1764049329637,0.43295803,88212.0,88211.0,0.0461027]
[1764049330229,0.43295803,88212.0,88211.0,0.10720436]
[1764049330430,0.77295803,88212.0,88211.0,0.10720436]
[1764049330740,0.38295803,88212.0,88211.0,0.10720436]
[1764049330938,0.57295803,88212.0,88211.0,0.10720436]
[1764049331237,0.21215803,88212.0,88211.0,0.0461027]
[1764049333440,0.47215803,88212.0,88211.0,0.0461027]
[1764049334239,0.09215803,88212.0,88211.0,0.0461027]
[1764049334429,0.17000949,88221.0,88220.0,0.0678303]
[1764049334430,0.02013003,88221.0,88220.0,0.0678303]
[1764049334633,0.04013003,88221.0,88220.0,0.06856297]
[1764049335241,0.02013003,88221.0,88220.0,0.06856297]
[1764049335540,0.00017003,88221.0,88220.0,0.06856297]
[1764049335942,0.00017003,88221.0,88220.0,0.42936297]
[1764049339441,0.38076,88238.0,88237.0,0.0549381]
[1764049339638,0.48295803,88238.0,88237.0,0.05567077]
[1764049342847,0.47297803,88238.0,88237.0,0.05567077]
[1764049343050,0.10219803,88238.0,88237.0,0.05567077]
[1764049343350,0.1,88238.0,88237.0,0.05567077]
[1764049343936,0.36125333,88246.0,88237.0,0.05567077]
[1764049344144,0.02045333,88246.0,88245.0,0.0678271]
[1764049344344,0.03263136,88246.0,88245.0,0.06855977]
[1764049344650,0.04261136,88246.0,88245.0,0.06855977]
[1764049346150,0.02261136,88246.0,88245.0,0.05722267]
[1764049346352,0.34261136,88246.0,88245.0,0.05722267]
[1764049347147,0.34261136,88246.0,88245.0,0.04433267]
[1764049347348,0.35394836,88246.0,88245.0,0.00073267]
[1764049347652,0.76474836,88246.0,88245.0,0.00073267]
[1764049348752,0.01996,88236.0,88235.0,0.0678283]
[1764049348953,0.41215803,88236.0,88235.0,0.06856097]
[1764049349344,0.08215803,88236.0,88235.0,0.06856097]
[1764049349545,0.38215803,88236.0,88235.0,0.05722267]
[1764049350446,0.45215803,88236.0,88235.0,0.05722267]
[1764049350646,0.01217803,88236.0,88235.0,0.05722267]
[1764049350843,0.06219803,88236.0,88235.0,0.05722267]
[1764049351047,0.07217803,88236.0,88235.0,0.05722267]
[1764049351248,0.08215803,88236.0,88235.0,0.05722267]
[1764049351944,0.12215803,88236.0,88235.0,0.05722267]
[1764049352458,0.41215803,88236.0,88235.0,0.05722267]
[1764049352644,0.41215803,88236.0,88235.0,0.06856107]
[1764049353254,0.41215803,88236.0,88235.0,0.01207107]
[1764049353460,0.41215803,88236.0,88235.0,0.05567107]
[1764049353762,0.24215803,88236.0,88235.0,0.05567107]
[1764049354448,0.23217803,88236.0,88235.0,0.05567107]
[1764049355054,0.24215803,88236.0,88235.0,0.05567107]
[1764049355355,0.00219803,88236.0,88235.0,0.05567107]
[1764049355754,0.38121333,88246.0,88245.0,0.0549371]
[1764049355960,0.58341136,88246.0,88245.0,0.05566977]
[1764049357047,0.58341136,88246.0,88245.0,0.04433267]
[1764049358654,0.83341136,88246.0,88245.0,0.04433267]
[1764049359359,0.02261136,88246.0,88245.0,0.05566977]
[1764049359565,0.06263136,88246.0,88245.0,0.05566977]
[1764049360058,0.07261136,88246.0,88245.0,0.05566977]
[1764049368552,0.07261136,88246.0,88245.0,0.06947977]
[1764049371167,0.02261136,88246.0,88245.0,0.06947977]
[1764049371860,0.08261136,88246.0,88245.0,0.06947977]
[1764049372066,0.14261136,88246.0,88245.0,0.06947977]
[1764049372262,0.38261136,88246.0,88245.0,0.05814267]
[1764049372464,0.38261136,88246.0,88245.0,0.06947977]
[1764049372669,0.21261136,88246.0,88245.0,0.06947977]
[1764049373656,0.20263136,88246.0,88245.0,0.06947977]
[1764049374056,0.19045333,88246.0,88245.0,0.06947977]
[1764049375066,0.19265136,88246.0,88245.0,0.06947977]
[1764049375270,0.20263136,88246.0,88245.0,0.06947977]
[1764049376770,0.21261136,88246.0,88245.0,0.06947977]
[1764049377266,0.19265136,88246.0,88245.0,0.06947977]
[1764049377467,0.19045333,88246.0,88245.0,0.06947977]
[1764049377663,0.19265136,88246.0,88245.0,0.06947977]
[1764049378671,0.21261136,88246.0,88245.0,0.06947977]
[1764049381164,0.19265136,88246.0,88245.0,0.06947977]
[1764049382866,0.20263136,88246.0,88245.0,0.06947977]
[1764049383167,0.21261136,88246.0,88245.0,0.06947977]
[1764049383571,0.19265136,88246.0,88245.0,0.06947977]
[1764049383761,0.21261136,88246.0,88245.0,0.06947977]
[1764049385671,0.19265136,88246.0,88245.0,0.06947977]
[1764049387073,0.00265136,88246.0,88245.0,0.06947977]
[1764049391878,0.01263136,88246.0,88245.0,0.06947977]
[1764049392067,0.01043333,88246.0,88245.0,0.06947977]
[1764049392468,0.00045333,88246.0,88245.0,0.06947977]
[1764049393776,0.01996,88260.0,88259.0,0.0555553]
[1764049394089,0.24601541,88260.0,88259.0,0.05628797]
[1764049394281,0.22215803,88260.0,88259.0,0.05628797]
[1764049394775,0.22315803,88260.0,88259.0,0.05628797]
[1764049395483,0.24701193,88260.0,88259.0,0.00073267]
[1764049395682,0.44701193,88260.0,88259.0,0.00073267]
[1764049396578,0.01996,88254.0,88253.0,0.3608]
[1764049396779,0.46734783,88254.0,88253.0,0.3608]
[1764049397284,0.46734783,88254.0,88253.0,0.36153267]
[1764049401976,0.46734783,88254.0,88253.0,0.37286877]
[1764049402286,0.46736018,88254.0,88253.0,0.37286877]
[1764049403787,0.46736018,88254.0,88253.0,0.36153267]
[1764049404283,0.46736018,88254.0,88253.0,0.00073267]
[1764049405783,0.46736018,88254.0,88253.0,0.04495267]
[1764049407577,0.45602428,88254.0,88253.0,0.05628877]
[1764049416099,0.44604428,88254.0,88253.0,0.05628877]
[1764049416285,0.14217803,88254.0,88253.0,0.05628877]
[1764049416686,0.13,88254.0,88253.0,0.05628877]
[1764049417087,0.095,88254.0,88253.0,0.05628877]
[1764049420500,0.11621,88254.0,88253.0,0.05628877]
[1764049420689,0.095,88254.0,88253.0,0.05628877]
[1764049421698,0.16510803,88254.0,88253.0,0.05628877]
[1764049422291,0.12,88254.0,88253.0,0.05628877]
[1764049422497,0.16555803,88254.0,88253.0,0.05628877]
[1764049423189,0.36555803,88254.0,88253.0,0.05628877]
[1764049425996,0.05555803,88254.0,88253.0,0.05628877]
[1764049428400,0.07385803,88254.0,88253.0,0.05628877]
[1764049428708,0.09555803,88254.0,88253.0,0.05628877]
[1764049429204,0.09555803,88254.0,88253.0,0.41708877]
[1764049430196,0.09555803,88254.0,88253.0,0.05628877]
[1764049430397,0.09555803,88254.0,88253.0,0.41708877]
[1764049432107,0.09555803,88254.0,88253.0,0.05628877]
[1764049432407,0.09555803,88254.0,88253.0,0.41708877]
[1764049432603,0.04555803,88254.0,88253.0,0.41708877]
[1764049432794,0.02166,88254.0,88253.0,0.41708877]
[1764049433002,0.12817133,88263.0,88262.0,0.0543049]
[1764049433203,0.37555803,88263.0,88262.0,0.04370267]
[1764049433407,0.37555803,88263.0,88262.0,0.02192267]
[1764049433595,0.37555803,88263.0,88262.0,0.04370267]
[1764049435208,0.39946776,88263.0,88262.0,0.04370267]
[1764049435508,0.40046776,88263.0,88262.0,0.04370267]
[1764049436615,0.40046776,88263.0,88262.0,0.00073267]
[1764049437005,0.04348,88257.0,88256.0,0.0113356]
[1764049437207,0.16567803,88257.0,88256.0,0.01206827]
[1764049437409,0.16567803,88257.0,88256.0,0.05773827]
[1764049437710,0.16567803,88257.0,88256.0,0.02358267]
[1764049437911,0.04567803,88257.0,88256.0,0.02358267]
[1764049438108,0.35567803,88257.0,88256.0,0.02358267]
[1764049441704,0.35567803,88257.0,88256.0,0.00073267]
[1764049442106,0.35567803,88257.0,88256.0,0.04640267]
[1764049442612,0.35567803,88257.0,88256.0,0.02358267]
[1764049443313,0.37954468,88257.0,88256.0,0.02358267]
[1764049443514,0.0548157,88256.0,88255.0,0.0113357]
[1764049443703,0.04348,88254.0,88253.0,0.3608]
[1764049443902,0.44567803,88254.0,88253.0,0.3608]
[1764049444103,0.44567803,88254.0,88253.0,0.00073267]
[1764049444310,0.04348,88252.0,88251.0,0.00017003]
[1764049444611,0.46567803,88252.0,88251.0,0.00017003]
[1764049445512,0.46567803,88252.0,88242.0,0.3721374]
[1764049445513,0.04348,88243.0,88242.0,0.3721374]
[1764049445811,0.46567803,88243.0,88242.0,0.4178074]
[1764049446213,0.46567803,88243.0,88242.0,0.41854007]
[1764049449119,0.46567803,88243.0,88242.0,0.05774007]
[1764049449807,0.39567803,88243.0,88242.0,0.05774007]
[1764049453822,0.11567803,88243.0,88242.0,0.05774007]
[1764049456323,0.31567803,88243.0,88242.0,0.05774007]
[1764049460027,0.31567803,88243.0,88242.0,0.03492007]
[1764049460227,0.31567803,88243.0,88242.0,0.05598007]